fUST/lending_fUST_20240320
["ID","MTS","AMOUNT","RATE_DAILY","PERIOD"]
[319693654,1710921357836,1045.53940528,0.00029612,2]
[319693655,1710921365862,3577.80246104,0.00030254,2]
[319693671,1710921510550,250.0,0.00041246,30]
[319693672,1710921544288,200.0,0.00030446,2]
[319693674,1710921650106,599.727454,0.00030446,2]
[319693675,1710921659078,697.02627018,0.00029612,2]
[319693676,1710921666509,597.80075257,0.00030559,2]
[319693677,1710921685531,317.79991253,0.0003,2]
[319693679,1710921742332,383.38681473,0.00024911,2]
[319693680,1710921785260,548.8744248,0.00030436,2]
[319693682,1710921801792,337.92570051,0.00030436,2]
[319693686,1710921859444,500.0,0.00041246,120]
[319693694,1710922027262,-469.98746995,0.00028335,2]
[319693695,1710922027283,-464.68418012,0.00028336,2]
[319693696,1710922027303,-1790.2450903,0.00030436,2]
[319693697,1710922041147,-2730.49642832,0.00030436,2]
[319693698,1710922052199,-2883.24658765,0.00030436,2]
[319693898,1710922237937,-421.20570574,0.00030102,2]
[319693900,1710922237947,-182.063328,0.00030102,2]
[319693902,1710922237957,-299.863727,0.00030103,2]
[319693904,1710922237967,-103.20808865,0.000304,2]
[319694438,1710922243138,-3627.2901271,0.000304,2]
[319694702,1710922246018,-457.71466524,0.000304,2]
[319696187,1710922261527,838.62701666,0.00028346,2]
[319701486,1710922339167,370.60725424,0.00025536,2]
[319701488,1710922404673,-994.38955449,0.00024996,2]
[319701489,1710922404693,-154.84515485,0.00024997,2]
[319701490,1710922404714,-1571.32607788,0.00024997,2]
[319701491,1710922404738,-1954.57424788,0.00024997,2]
[319701492,1710922404761,-1609.06716003,0.00024997,2]
[319701493,1710922404786,-469.98746995,0.00024998,2]
[319701494,1710922404807,-559.27847432,0.00024999,2]
[319701495,1710922404827,-42.5318606,0.00024999,2]
[319701502,1710922420955,-12000.0,0.00024,4]
[319701503,1710922421016,-12000.0,0.00024,4]
[319701504,1710922421106,-12000.0,0.00024,4]
[319701505,1710922421267,-12000.0,0.00024,4]
[319701506,1710922421322,-12000.0,0.00024,4]
[319701508,1710922421606,-12000.0,0.00024,4]
[319701509,1710922421664,-12000.0,0.00024,4]
[319701510,1710922421796,-12000.0,0.00024,4]
[319701511,1710922422003,-12000.0,0.00024,4]
[319701512,1710922422039,-12000.0,0.00024,4]
[319701513,1710922422144,-12000.0,0.00024,4]
[319701514,1710922422254,-2310.16202062,0.00024,4]
[319701522,1710922426965,-604.63713328,0.00023999,2]
[319701523,1710922427156,-12.33953333,0.00023999,2]
[319701525,1710922427426,290.98092274,0.00023999,2]
[319701534,1710922440742,-730.51095324,0.00024747,2]
[319701535,1710922440785,-14.9083868,0.00024747,2]
[319701542,1710922447991,730.51095324,0.00024747,2]
[319701560,1710922473047,-14.9083868,0.00024747,2]
[319701561,1710922473069,-394.0916132,0.00024997,2]
[319701567,1710922478829,-2320.04629796,0.00024746,2]
[319701568,1710922478975,-47.34788363,0.00024746,2]
[319701572,1710922485362,500.0,0.00041264,30]
[319701574,1710922491334,500.0,0.00041264,30]
[319701603,1710922549098,499.9999,0.00041264,30]
[319701612,1710922579724,269.83823354,0.00024892,2]
[319701614,1710922584674,304.70562123,0.00024892,2]
[319701619,1710922591835,724.8325585,0.00024892,2]
[319701620,1710922591863,724.8325585,0.00024892,2]
[319701621,1710922591893,724.8325585,0.00024892,2]
[319701622,1710922591921,724.8325585,0.00024892,2]
[319701623,1710922591950,604.81790787,0.00024892,2]
[319701624,1710922593686,382.11724394,0.00024892,2]
[319701627,1710922596518,154.84515485,0.00024892,2]
[319701631,1710922604655,210.95504491,0.00024892,2]
[319701646,1710922925394,-1609.06716003,0.00022895,2]
[319701647,1710922925429,-469.98746995,0.00022896,2]
[319701648,1710922925451,-154.84515485,0.00022897,2]
[319701649,1710922925474,-559.08467777,0.00022898,2]
[319701650,1710922925574,534.46429513,0.00022894,2]
[319701651,1710922931716,212.37767704,0.00024622,2]
[319701661,1710923165158,303.0,0.0002,10]
[319701662,1710923179880,10000.0,0.00041238,30]
[319701663,1710923225160,-372.72311852,0.00022647,2]
[319701664,1710923225190,-3598.85325771,0.00024623,2]
[319701665,1710923243108,-1609.06716003,0.00024622,2]
[319701666,1710923243128,-154.84515485,0.00024622,2]
[319701667,1710923243148,-3807.39162094,0.00024623,2]
[319701668,1710923258828,10000.0,0.00041238,30]
[319701669,1710923291850,10000.0,0.00041239,30]
[319701670,1710923313098,10000.0,0.00041239,30]
[319701671,1710923342125,10000.0,0.00041239,30]
[319701673,1710923346122,-212.37767704,0.00024619,2]
[319701674,1710923346145,-154.84515485,0.00024622,2]
[319701675,1710923346169,-17255.01429645,0.00024623,2]
[319701676,1710923346191,-2884.5994258,0.00024854,2]
[319701677,1710923346213,-739.62505969,0.00024893,2]
[319701678,1710923346235,-233.68265011,0.00025,2]
[319701679,1710923346259,-173.34142774,0.0002535,2]
[319701680,1710923346280,-1408.9290938,0.00025449,2]
[319701681,1710923346302,-616.2424708,0.00025533,2]
[319701682,1710923346325,-158.470772,0.0002557,2]
[319701683,1710923346346,-179.309802,0.00026575,2]
[319701684,1710923346368,-179.309802,0.00026575,41]
[319701685,1710923346390,-179.309802,0.00026575,80]
[319701686,1710923346413,-179.309802,0.00026575,119]
[319701687,1710923346435,-24900.0,0.00026912,2]
[319701688,1710923346457,-166.334957,0.00027537,2]
[319701689,1710923346479,-372.72311852,0.00027647,2]
[319701690,1710923346500,-180.11500984,0.0002785,2]
[319701691,1710923353213,-587.79858926,0.0002785,2]
[319701692,1710923353233,-240.043575,0.00028405,2]
[319701693,1710923410729,154.84515485,0.00028405,2]
[319701718,1710923432043,-304.70562123,0.00029998,2]
[319701719,1710923432055,-290.98092274,0.00029999,2]
[319701720,1710923432064,-3681.78711901,0.0003,2]
[319701721,1710923432074,-360.0,0.0003,2]
[319701722,1710923432083,-641.25091115,0.00030001,4]
[319701723,1710923432092,-187.22672451,0.00030002,2]
[319701724,1710923432102,-324.03136722,0.00030436,3]
[319701725,1710923432111,-155.89592061,0.000317,2]
[319701727,1710923432122,-23037.02329843,0.00031937,4]
[319701729,1710923432132,-156.8192832,0.00032044,4]
[319701731,1710923432141,-1158.99011817,0.00032142,4]
[319701733,1710923432151,-1000.0,0.000326,2]
[319701735,1710923432161,-1793.95136208,0.000326,2]
[319701737,1710923432171,-362.13316636,0.00032698,4]
[319701739,1710923432181,-1241.92279885,0.00032698,4]
[319701741,1710923432191,-644.47698652,0.00032698,4]
[319701743,1710923432201,-210.85389957,0.00032698,4]
[319701745,1710923432211,-458.95182705,0.00032698,4]
[319701747,1710923432220,-858.11137061,0.00032698,4]
[319701749,1710923432230,-1053.63250871,0.00032698,4]
[319701751,1710923432239,-154.87609603,0.00032698,4]
[319701753,1710923432249,-302.43371361,0.00032698,4]
[319701755,1710923432258,-157.71014488,0.00032698,4]
[319701757,1710923432268,-382.66936737,0.00032698,4]
[319701759,1710923432277,-188.9877632,0.00032698,4]
[319701761,1710923432287,-250.16524321,0.00032698,4]
[319701762,1710923432296,-305.69536824,0.00032699,2]
[319701763,1710923432307,-500.0,0.00032699,2]
[319701764,1710923432315,-347.24719046,0.00032699,2]
[319701765,1710923432377,-152.75280954,0.00032699,2]
[319701766,1710923432386,-500.0,0.00032699,2]
[319701767,1710923432395,-500.0,0.00032699,2]
[319701768,1710923432405,-500.0,0.00032699,2]
[319701769,1710923432414,-500.0,0.00032699,2]
[319701770,1710923432424,-504.3088198,0.00032699,2]
[319701771,1710923432433,-398.94968791,0.00032699,2]
[319701772,1710923432442,-500.0,0.00032699,2]
[319701773,1710923432451,-500.0,0.00032699,2]
[319701774,1710923432460,-500.0,0.00032699,2]
[319701775,1710923432469,-500.0,0.00032699,2]
[319701776,1710923432478,-500.0,0.00032699,2]
[319701777,1710923432487,-500.0,0.00032699,2]
[319701778,1710923432497,-500.0,0.00032699,2]
[319701779,1710923432505,-500.0,0.00032699,2]
[319701780,1710923432514,-500.0,0.00032699,2]
[319701781,1710923432523,-500.0,0.00032699,2]
[319701782,1710923432532,-500.0,0.00032699,2]
[319701783,1710923432542,-151.873166,0.00032699,2]
[319701784,1710923432552,-174053.33600327,0.000327,2]
[319701785,1710923432562,-151.167577,0.000327,2]
[319701786,1710923432571,-202.225326,0.000327,2]
[319701787,1710923432580,-202.225326,0.000327,2]
[319701788,1710923432589,-776.106959,0.000327,2]
[319701789,1710923432598,-776.106959,0.000327,2]
[319701790,1710923432607,-250.452786,0.000327,2]
[319701791,1710923432616,-250.452786,0.000327,2]
[319701792,1710923432625,-151.0,0.000327,2]
[319701793,1710923432634,-151.0,0.000327,2]
[319701794,1710923432644,-151.0,0.000327,2]
[319701795,1710923432654,-151.0,0.000327,2]
[319701796,1710923432663,-151.0,0.000327,2]
[319701797,1710923432673,-343.927415,0.000327,2]
[319701798,1710923432683,-278.183002,0.000327,2]
[319701799,1710923432692,-654.415424,0.000327,2]
[319701800,1710923432702,-343.927415,0.000327,2]
[319701801,1710923432712,-654.415424,0.000327,2]
[319701802,1710923432722,-2591.26189827,0.00032765,10]
[319701803,1710923432731,-597.80075257,0.00032798,2]
[319701804,1710923432740,-2598.90553156,0.00032798,4]
[319701805,1710923432751,-423.35286888,0.00032798,2]
[319701806,1710923432761,-155.29721935,0.00032798,4]
[319701807,1710923432772,-205.03177245,0.00032798,4]
[319701808,1710923432782,-257.91067868,0.00032798,4]
[319701809,1710923432898,-1475.78282209,0.00032798,4]
[319701810,1710923432908,-377.43369852,0.00032798,4]
[319701811,1710923432917,-2745.78191176,0.00032798,120]
[319701812,1710923432927,-251.48595237,0.00032798,4]
[319701813,1710923432937,-837.59864084,0.00032798,4]
[319701814,1710923432946,-1391.64983159,0.00032798,4]
[319701815,1710923432955,-1034.69818892,0.00032798,7]
[319701816,1710923432965,-618.43106565,0.00032798,4]
[319701817,1710923432974,-202.225326,0.00032798,2]
[319701818,1710923432983,-202.225326,0.00032798,2]
[319701819,1710923432993,-776.106959,0.00032798,2]
[319701820,1710923433003,-776.106959,0.00032798,2]
[319701821,1710923433013,-250.452786,0.00032798,2]
[319701822,1710923433022,-250.452786,0.00032798,2]
[319701823,1710923433033,-152.476642,0.00032798,2]
[319701824,1710923433042,-151.0,0.00032798,2]
[319701825,1710923433052,-151.0,0.00032798,2]
[319701826,1710923433062,-151.0,0.00032798,2]
[319701827,1710923433073,-151.0,0.00032798,2]
[319701828,1710923433083,-343.927415,0.00032798,2]
[319701829,1710923433093,-654.415424,0.00032798,2]
[319701830,1710923433103,-343.927415,0.00032798,2]
[319701831,1710923433112,-654.415424,0.00032798,2]
[319701832,1710923433122,-202.225326,0.00032799,2]
[319701833,1710923433131,-202.225326,0.00032799,2]
[319701834,1710923433142,-776.106959,0.00032799,2]
[319701835,1710923433151,-776.106959,0.00032799,2]
[319701836,1710923433161,-250.452786,0.00032799,2]
[319701837,1710923433171,-250.452786,0.00032799,2]
[319701838,1710923433183,-151.0,0.00032799,2]
[319701839,1710923433193,-151.0,0.00032799,2]
[319701840,1710923433203,-151.0,0.00032799,2]
[319701841,1710923433212,-151.0,0.00032799,2]
[319701842,1710923433221,-343.927415,0.00032799,2]
[319701843,1710923433231,-654.415424,0.00032799,2]
[319701844,1710923433241,-343.927415,0.00032799,2]
[319701845,1710923433250,-654.415424,0.00032799,2]
[319701846,1710923433260,-166.666666,0.00032877,2]
[319701847,1710923433270,-227.50831913,0.00032898,4]
[319701848,1710923433279,-393.57173531,0.00032898,4]
[319701849,1710923433289,-800.79324474,0.00032898,4]
[319701850,1710923433298,-296.85435127,0.00032898,4]
[319701851,1710923433309,-391.67321971,0.00032898,4]
[319701852,1710923433318,-150.0,0.00032899,2]
[319701853,1710923433328,-43277.94022257,0.00032899,3]
[319701854,1710923433338,-82703.92029675,0.000329,3]
[319701855,1710923433347,-202.225326,0.000329,2]
[319701856,1710923433357,-202.225326,0.000329,2]
[319701857,1710923433367,-776.106959,0.000329,2]
[319701858,1710923433377,-776.106959,0.000329,2]
[319701859,1710923433387,-250.452786,0.000329,2]
[319701860,1710923433396,-250.452786,0.000329,2]
[319701861,1710923433406,-151.0,0.000329,2]
[319701862,1710923433415,-151.0,0.000329,2]
[319701863,1710923433424,-151.0,0.000329,2]
[319701864,1710923433433,-288.315337,0.000329,2]
[319701865,1710923433443,-343.927415,0.000329,2]
[319701866,1710923433452,-654.415424,0.000329,2]
[319701867,1710923433461,-343.927415,0.000329,2]
[319701868,1710923433470,-654.415424,0.000329,2]
[319701869,1710923433480,-156.04247205,0.00032965,2]
[319701870,1710923433490,-583.3413417,0.00032996,4]
[319701871,1710923433500,-187.5384845,0.00032996,2]
[319701872,1710923433511,-1248.51038052,0.00032996,4]
[319701873,1710923433523,-302.11520456,0.00032998,4]
[319701874,1710923433533,-3430.93079802,0.00032998,4]
[319701875,1710923433543,-970.63798135,0.00032998,4]
[319701876,1710923433553,-326.05062625,0.00032998,4]
[319701877,1710923433563,-530.81479879,0.00032998,4]
[319701878,1710923433572,-157.44716261,0.00032998,4]
[319701879,1710923433581,-202.225326,0.00032998,2]
[319701880,1710923433591,-202.225326,0.00032998,2]
[319701881,1710923433601,-776.106959,0.00032998,2]
[319701882,1710923433610,-776.106959,0.00032998,2]
[319701883,1710923433619,-250.452786,0.00032998,2]
[319701884,1710923433628,-250.452786,0.00032998,2]
[319701885,1710923433638,-151.0,0.00032998,2]
[319701886,1710923433647,-151.0,0.00032998,2]
[319701887,1710923433656,-343.927415,0.00032998,2]
[319701888,1710923433666,-654.415424,0.00032998,2]
[319701889,1710923433675,-343.927415,0.00032998,2]
[319701890,1710923433685,-654.415424,0.00032998,2]
[319701891,1710923433694,-160.0,0.00032999,10]
[319701892,1710923433703,-83315.98714378,0.00033,13]
[319701893,1710923433713,-202.225326,0.00033,2]
[319701894,1710923433722,-202.225326,0.00033,2]
[319701895,1710923433732,-776.106959,0.00033,2]
[319701896,1710923433741,-776.106959,0.00033,2]
[319701897,1710923433751,-250.452786,0.00033,2]
[319701898,1710923433760,-250.452786,0.00033,2]
[319701899,1710923433770,-151.0,0.00033,2]
[319701900,1710923433779,-151.0,0.00033,2]
[319701901,1710923433788,-343.927415,0.00033,2]
[319701902,1710923433798,-654.415424,0.00033,2]
[319701903,1710923433809,-343.927415,0.00033,2]
[319701904,1710923433818,-654.415424,0.00033,2]
[319701905,1710923433827,-166.666666,0.00033646,2]
[319701906,1710923433839,-150.0,0.00033899,2]
[319701907,1710923433848,-150.51834966,0.00033964,2]
[319701908,1710923433857,-166.666666,0.00034415,2]
[319701909,1710923433867,-2000.0,0.00034473,2]
[319701910,1710923433876,-343.927415,0.00034575,2]
[319701911,1710923433886,-654.415424,0.00034575,2]
[319701912,1710923433895,-343.927415,0.00034575,2]
[319701913,1710923433905,-654.415424,0.00034575,2]
[319701914,1710923433915,-153.0,0.00034575,2]
[319701915,1710923433925,-153.0,0.00034575,2]
[319701916,1710923433934,-153.0,0.00034575,2]
[319701917,1710923433943,-153.0,0.00034575,2]
[319701918,1710923433952,-306.5158216,0.00034575,2]
[319701919,1710923433961,-153.0,0.00034575,2]
[319701920,1710923433970,-153.0,0.00034575,2]
[319701921,1710923433980,-153.0,0.00034575,2]
[319701922,1710923433989,-153.0,0.00034575,2]
[319701923,1710923433998,-153.0,0.00034575,2]
[319701924,1710923434008,-153.0,0.00034575,2]
[319701925,1710923434017,-153.0,0.00034575,2]
[319701926,1710923434026,-153.0,0.00034575,2]
[319701927,1710923434036,-153.0,0.00034575,2]
[319701928,1710923434045,-153.0,0.00034575,2]
[319701929,1710923434054,-153.0,0.00034575,2]
[319701930,1710923434064,-153.0,0.00034575,2]
[319701931,1710923434073,-153.0,0.00034575,2]
[319701932,1710923434083,-373.8587831,0.00034575,2]
[319701933,1710923434092,-153.0,0.00034575,2]
[319701934,1710923434102,-153.0,0.00034575,2]
[319701935,1710923434111,-153.0,0.00034575,2]
[319701936,1710923434121,-306.0,0.00034575,2]
[319701937,1710923434130,-306.0,0.00034575,2]
[319701938,1710923434139,-153.0,0.00034575,2]
[319701939,1710923434148,-153.0,0.00034575,2]
[319701940,1710923434158,-153.0,0.00034575,2]
[319701941,1710923434169,-153.0,0.00034575,2]
[319701942,1710923434178,-306.0,0.00034575,2]
[319701943,1710923434188,-306.0,0.00034575,2]
[319701944,1710923434198,-153.0,0.00034575,2]
[319701945,1710923434207,-153.0,0.00034575,2]
[319701946,1710923434217,-153.0,0.00034575,2]
[319701947,1710923434226,-306.0,0.00034575,2]
[319701948,1710923434235,-153.0,0.00034575,2]
[319701949,1710923434245,-153.0,0.00034575,2]
[319701950,1710923434255,-153.0,0.00034575,2]
[319701951,1710923434264,-1793.95136204,0.00034693,2]
[319701952,1710923434274,-173.34142773,0.00034817,7]
[319701953,1710923434283,-150.0,0.00034899,2]
[319701954,1710923434292,-304.22471689,0.000349,2]
[319701955,1710923434301,-153.0,0.00034947,2]
[319701956,1710923434312,-306.0,0.00034947,2]
[319701957,1710923434320,-153.0,0.00034947,2]
[319701958,1710923434329,-153.0,0.00034947,2]
[319701959,1710923434339,-160.0,0.00034999,10]
[319701960,1710923434350,-154.84515485,0.00035,4]
[319701961,1710923434359,-75262.37606518,0.00035,10]
[319701962,1710923434369,-2339.39536252,0.00035,7]
[319701963,1710923434378,-202.225326,0.00035,2]
[319701964,1710923434388,-202.225326,0.00035,2]
[319701965,1710923434397,-5073.74409129,0.00035,30]
[319701966,1710923434407,-776.106959,0.00035,2]
[319701967,1710923434416,-776.106959,0.00035,2]
[319701968,1710923434425,-250.452786,0.00035,2]
[319701969,1710923434434,-250.452786,0.00035,2]
[319701970,1710923434443,-151.0,0.00035,2]
[319701971,1710923434452,-151.0,0.00035,2]
[319701972,1710923434461,-343.927415,0.00035,2]
[319701973,1710923434470,-654.415424,0.00035,2]
[319701974,1710923434480,-343.927415,0.00035,2]
[319701975,1710923434489,-654.415424,0.00035,2]
[319701976,1710923434499,-166.666666,0.00035185,2]
[319701977,1710923434507,-160.87,0.00035376,35]
[319701978,1710923434516,-150.5,0.00035386,35]
[319701979,1710923434525,-200757.34311214,0.00035396,2]
[319701980,1710923434636,154.84515485,0.00028405,2]
[319702157,1710923443275,-469.50912641,0.00032273,2]
[319702158,1710923443285,-511.9423994,0.00032599,2]
[319702159,1710923443295,-511.9423994,0.000326,2]
[319702160,1710923443304,-500.0,0.00032699,2]
[319702161,1710923443318,-500.0,0.00032699,2]
[319702162,1710923443328,-264.7114934,0.00032699,2]
[319702163,1710923443337,-289.85048609,0.00032699,2]
[319702164,1710923443347,-500.0,0.00032699,2]
[319702165,1710923443357,-382.93491045,0.00032699,2]
[319702166,1710923443366,-500.0,0.00032699,2]
[319702167,1710923443376,-119273.21058039,0.00035396,2]
[319702175,1710923446287,-18425.27763753,0.00035395,4]
[319702176,1710923452722,163.40316434,0.00028405,2]
[319702177,1710923576137,-390.95325513,0.00032172,4]
[319702178,1710923576158,-641.25091115,0.00032172,4]
[319702179,1710923576181,-282.20053807,0.00032173,4]
[319702180,1710923576201,-6378.9141845,0.00032173,4]
[319702181,1710923576223,-1502.46068589,0.00032174,2]
[319702182,1710923576243,-338.3916299,0.00032274,2]
[319702183,1710923576264,-7750.55659439,0.00032598,4]
[319702184,1710923576285,-154.84515485,0.00032598,4]
[319702185,1710923576305,-779.14717411,0.00032598,4]
[319702186,1710923576324,-189.37752679,0.00032598,4]
[319702187,1710923576345,-16.90234522,0.00032598,7]
[319702188,1710923670443,500.0,0.00041071,120]
[319702189,1710924428356,-210.03782905,0.00024143,2]
[319702190,1710924428377,-4472.59649676,0.00024144,5]
[319702191,1710924435103,-2278.97048712,0.00024144,5]
[319702192,1710924435124,-166.666666,0.00027743,2]
[319702193,1710924435147,-166.666666,0.00028499,2]
[319702194,1710924435167,-274.3660675,0.0002866,2]
[319702195,1710924435189,-300.0,0.00029096,2]
[319702196,1710924435209,-2778.341694,0.00029097,2]
[319702197,1710924435231,-166.666666,0.00029255,2]
[319702198,1710924435251,-11490.55888172,0.00029588,2]
[319702199,1710924439162,-6417.58408756,0.00029588,2]
[319702291,1710924633062,-309.803914,0.00029258,2]
[319702292,1710924633071,-300.0,0.00029291,2]
[319702293,1710924633080,-166.334957,0.00029446,2]
[319702294,1710924633089,-300.0,0.00029587,2]
[319702295,1710924633098,-6991.85703072,0.00029588,2]
[319702296,1710924633106,-158.258108,0.00029588,2]
[319702297,1710924633116,-210.03782905,0.0002967,2]
[319702298,1710924633125,-1771.2217488,0.00029671,2]
[319702299,1710924633133,-661.9900027,0.00029782,2]
[319702300,1710924633143,-287.2678501,0.00029794,2]
[319702301,1710924633153,-166.666666,0.00030012,2]
[319702302,1710924633162,-356.568426,0.00030149,2]
[319702303,1710924633173,-182.063328,0.00030223,2]
[319702304,1710924633182,-17255.0142964,0.00030488,2]
[319702305,1710924633191,-1287.96725745,0.00030498,2]
[319702306,1710924633200,-166.666666,0.00030768,2]
[319702307,1710924633209,-166.666666,0.00031524,2]
[319702308,1710924633220,-188.724702,0.00031551,2]
[319702309,1710924633229,-170.64746648,0.00032497,2]
[319702310,1710924633239,-1000.0,0.00032498,2]
[319702311,1710924633249,-10000.0,0.000325,2]
[319702312,1710924633258,-480.0,0.00032546,3]
[319702313,1710924633267,-170.64746646,0.00032581,2]
[319702314,1710924633276,-2159.40070507,0.00032596,2]
[319702315,1710924633285,-154.84515485,0.00032596,4]
[319702316,1710924633294,-212.37767704,0.00032596,4]
[319702318,1710924633303,-209.21499005,0.00032596,2]
[319702319,1710924633312,-3403.98759157,0.00032597,4]
[319702320,1710924633321,-5126.90943246,0.00032597,4]
[319702359,1710924638331,-210.03782905,0.00029257,2]
[319702360,1710924638341,-104.14217095,0.00032271,2]
[319702683,1710924646516,-474.17740683,0.00032271,2]
[319702684,1710924652880,154.84515485,0.00019,2]
[319702685,1710924652926,0.36681476,0.00019,2]
[319702689,1710924809890,991254.00882918,0.00041082,60]
[319702699,1710924856262,696.63318524,0.000125,2]
[319702700,1710924856296,3040.36681476,0.000125,2]
[319702723,1710924946657,822.0,0.00041121,30]
[319702731,1710924954951,-154.87609912,0.00029577,2]
[319702732,1710924954977,-405.14954919,0.00029578,2]
[319702733,1710924955002,-1300.05415471,0.00029579,2]
[319702734,1710924955027,-3147.88054941,0.00029586,2]
[319702735,1710924955053,-155.67083787,0.00029588,2]
[319702736,1710924955078,-691.8576404,0.00029588,2]
[319702737,1710924955105,-1069.57541367,0.0003,4]
[319702738,1710924955130,-297.7699792,0.00030208,2]
[319702761,1710925029414,10000.0,0.00041121,30]
[319702788,1710925105808,10000.0,0.00041128,30]
[319702796,1710925130963,2400.0,0.00041128,30]
[319702797,1710925148885,500.0,0.00041128,120]
[319702798,1710925154942,232499.47981074,0.00041128,30]
[319702802,1710925207601,10000.0,0.00041128,30]
[319702806,1710925253049,10000.0,0.00041128,30]
[319702807,1710925254195,997.0,0.00041128,30]
[319702808,1710925264887,997.0,0.00041128,30]
[319702809,1710925275815,997.0,0.00041128,30]
[319702810,1710925286493,997.0,0.00041128,30]
[319702811,1710925297098,997.0,0.00041128,30]
[319702814,1710925307662,997.0,0.00041128,30]
[319702815,1710925318222,997.0,0.00041128,30]
[319702816,1710925328794,997.0,0.00041128,30]
[319702817,1710925339359,997.0,0.00041128,30]
[319702818,1710925343951,176.0,0.00041128,30]
[319702819,1710925349953,997.0,0.00041128,30]
[319702820,1710925360600,997.0,0.00041128,30]
[319702821,1710925371226,997.0,0.00041128,30]
[319702822,1710925381840,997.0,0.00041128,30]
[319702824,1710925392428,997.0,0.00041128,30]
[319702825,1710925403004,997.0,0.00041128,30]
[319702826,1710925413665,997.0,0.00041128,30]
[319702827,1710925424319,997.0,0.00041128,30]
[319702828,1710925434995,997.0,0.00041128,30]
[319702830,1710925445575,997.0,0.00041128,30]
[319702834,1710925455768,500.0,0.00041128,120]
[319702835,1710925456224,997.0,0.00041128,30]
[319702838,1710925466924,997.0,0.00041128,30]
[319702841,1710925478150,997.0,0.00041128,30]
[319702843,1710925488819,997.0,0.00041128,30]
[319702844,1710925490626,15056.03837734,0.00041128,30]
[319702845,1710925499439,997.0,0.00041128,30]
[319702846,1710925510032,997.0,0.00041128,30]
[319702856,1710925627324,-469.98746995,0.00025233,2]
[319702857,1710925627345,-370.85996443,0.00025234,2]
[319702858,1710925627364,-219.0727127,0.0003056,2]
[319702859,1710925627385,-158.456304,0.00030718,2]
[319702860,1710925627404,-957.8448723,0.00030842,2]
[319702861,1710925627425,-178.284213,0.00030874,2]
[319702862,1710925627444,-375.99089194,0.00031106,3]
[319702873,1710925644156,-24.00910806,0.00031106,3]
[319702874,1710925644178,-192.0,0.00031107,2]
[319702875,1710925644201,-2508.90763231,0.00031107,2]
[319702947,1710925832579,-404.018,0.000299,40]
[319702949,1710925832601,-630.24301666,0.000299,57]
[319702951,1710925832614,-250.0,0.00030893,2]
[319702953,1710925832624,-77.46589021,0.00031192,2]
[319702955,1710925832639,-111.25881179,0.00031192,2]
[319702956,1710925832649,-2175.66745544,0.00031465,2]
[319703024,1710925838501,-565.90470413,0.00031465,2]
[319703026,1710925838514,-6653.27990171,0.00031465,2]
[319703238,1710925840643,-6272.56225033,0.00031465,2]
[319703355,1710925841897,-565.22309176,0.00031465,2]
[319703357,1710925841909,-594.29,0.00031465,2]
[319703799,1710925846545,-1050.34548557,0.00031465,2]
[319703802,1710925846562,-7022.72711106,0.00031465,2]
[319703805,1710925846572,-176.79472557,0.000319,5]
[319703808,1710925846581,-1000.0,0.00032,32]
[319703811,1710925846590,-1000.0,0.000324,2]
[319703814,1710925846599,-3345.93171042,0.000324,7]
[319703817,1710925846608,-1194.53226526,0.00032497,2]
[319703820,1710925846618,-1134.32774492,0.00032497,2]
[319703823,1710925846628,-253.75290546,0.00032498,4]
[319703826,1710925846638,-677.82209851,0.00032498,4]
[319703829,1710925846647,-240.13343333,0.00032498,4]